bitfinex-derivatives/quotes_ETHF0:USTF0_20251204
["timestamp","ask_amount","ask_price","bid_price","bid_amount"]
[1764855075734,1.4635,3185.1,3185.0,3.2078]
[1764855075935,1.4635,3185.1,3184.9,0.00748088]
[1764855076136,1.9307,3185.0,3184.9,0.00748088]
[1764855077956,0.7039,3184.2,3184.1,3.2078]
[1764855078146,1.4635,3184.2,3184.1,3.2078]
[1764855079051,1.46669942,3184.2,3184.1,3.2100656]
[1764855079857,1.46669942,3184.2,3183.8,0.00471379]
[1764855079858,1.4635,3183.9,3183.8,0.00471379]
[1764855080053,0.70709942,3184.2,3184.1,0.7731]
[1764855080258,0.00319942,3184.2,3184.1,1.4761]
[1764855080555,0.00319942,3184.2,3184.1,4.6839]
[1764855080757,0.00319942,3184.2,3184.1,4.68639782]
[1764855080953,0.00471379,3184.5,3184.4,1.6331]
[1764855081550,0.70861379,3184.5,3184.4,1.6331]
[1764855081859,0.00471379,3184.5,3184.4,1.6331]
[1764855082062,0.00471379,3184.5,3184.1,3.21029782]
[1764855082063,1.4635,3184.2,3184.1,3.21029782]
[1764855082758,1.4635,3184.2,3184.1,0.00249782]
[1764855084853,7.4635,3184.2,3183.8,0.00471379]
[1764855085059,0.7039,3183.4,3183.3,4.13795]
[1764855085358,3.675,3184.0,3183.3,4.84095]
[1764855085760,0.7039,3183.4,3183.3,4.84095]
[1764855085960,0.7039,3183.4,3183.3,4.84429367]
[1764855086161,3.675,3184.0,3183.3,4.84429367]
[1764855086659,3.675,3184.0,3183.9,1.4761]
[1764855086660,3.2078,3184.0,3183.9,1.4761]
[1764855086852,3.68309413,3184.5,3183.9,1.4761]
[1764855087054,3.68309413,3184.5,3183.7,3.2078]
[1764855087055,3.91979413,3184.5,3184.4,0.7731]
[1764855087251,3.91979413,3184.5,3184.4,1.4761]
[1764855087455,0.00809413,3184.5,3184.4,1.4761]
[1764855088363,0.00809413,3184.5,3184.4,1.6331]
[1764855089861,0.7039,3184.3,3184.0,0.15702]
[1764855090458,0.7039,3184.1,3184.0,0.15702]
[1764855090655,1.4635,3184.1,3184.0,0.15702]
[1764855090853,0.4672,3184.0,3183.3,0.00334367]
[1764855091058,0.4672,3184.0,3183.5,0.15704]
[1764855092362,1.4635,3183.6,3183.5,0.15704]
[1764855093065,0.7039,3183.6,3183.5,0.93014]
[1764855093368,1.4635,3183.6,3183.5,0.15704]
[1764855094866,0.7039,3183.6,3183.5,0.93014]
[1764855095458,0.4672,3184.0,3183.5,1.70294]
[1764855095863,0.7834,3183.6,3183.5,1.70294]
[1764855096164,0.4672,3184.0,3183.5,1.70294]
[1764855096564,0.7834,3183.6,3183.5,1.70294]
[1764855097165,3.9912,3183.6,3183.5,1.70294]
[1764855098068,3.2078,3183.6,3183.5,1.70294]
[1764855098565,4.7496,3183.6,3183.5,0.93014]
[1764855098771,4.7496,3183.6,3183.5,0.15704]
[1764855099464,1.5418,3183.4,3183.3,0.00334367]
[1764855099666,2.0627,3182.5,3182.4,3.2078]
[1764855099968,0.05468848,3183.6,3183.2,1.5209]
[1764855100265,0.7834,3183.2,3183.1,0.90516]
[1764855100664,1.5418,3183.2,3183.1,0.0022268]
[1764855103570,3.73341379,3183.5,3183.1,1.6714268]
[1764855103771,1.6173,3183.2,3183.1,0.0022268]
[1764855104065,3.73341379,3183.5,3183.1,0.0022268]
[1764855104066,3.73341379,3183.5,3183.1,1.6714268]
[1764855104458,1.36734725,3184.5,3184.4,0.157]
[1764855104662,1.36734725,3184.9,3184.4,3.3648]
[1764855104867,0.4797,3184.5,3184.4,4.32912252]
[1764855105062,0.4797,3184.5,3183.5,5.53340331]
[1764855105263,0.4797,3184.5,3184.0,0.15702]
[1764855105470,0.4797,3185.0,3184.6,0.15699]
[1764855105663,0.00343706,3185.0,3184.7,3.44309256]
[1764855106064,0.00471379,3185.1,3184.7,9.28611256]
[1764855106263,0.4797,3185.5,3185.0,3.36477]
[1764855106463,0.4797,3186.0,3185.4,3.2078]
[1764855106673,1.2707,3186.0,3185.9,3.2078]
[1764855106874,0.4797,3186.6,3185.9,3.2078]
[1764855107072,0.48314717,3186.6,3185.9,3.21184345]
[1764855107371,0.48786096,3186.6,3185.9,3.21184345]
[1764855108370,0.48786096,3186.6,3186.4,3.2078]
[1764855108566,0.00816096,3186.6,3186.4,3.2078]
[1764855109568,0.00816096,3186.6,3186.5,3.28611256]
[1764855109771,0.4797,3187.2,3186.5,13.38488664]
[1764855109978,0.4797,3187.2,3187.1,3.2078]
[1764855110189,3.2078,3188.1,3187.1,6.49391256]
[1764855110370,3.2078,3188.6,3187.7,3.2078]
[1764855110770,0.791,3187.4,3187.3,3.2078]
[1764855110976,0.791,3187.4,3186.9,3.2078]
[1764855111368,0.48277055,3187.8,3186.9,3.2078]
[1764855111975,0.4797,3187.2,3186.9,3.2078]
[1764855112371,1.6173,3187.0,3186.9,3.2078]
[1764855112572,1.6173,3186.3,3185.9,0.00404345]
[1764855112880,0.4797,3186.6,3185.9,0.00404345]
[1764855113079,2.097,3186.0,3185.9,0.00404345]
[1764855113777,1.6173,3185.3,3185.2,3.2078]
[1764855113983,0.791,3184.8,3184.7,3.2078]
[1764855114175,0.00470618,3186.3,3185.2,4.05730641]
[1764855114382,3.2078,3187.5,3186.3,0.1569]
[1764855114570,3.2078,3187.5,3186.6,3.2078]
[1764855114770,0.48351235,3187.2,3187.0,3.2078]
[1764855115178,0.00381235,3187.2,3187.0,3.36467]
[1764855115587,0.4797,3187.1,3187.0,3.36467]
[1764855115887,0.4797,3187.1,3187.0,3.2078]
[1764855116686,0.4797,3187.1,3186.8,0.00470618]
[1764855119074,0.4797,3187.1,3187.0,3.2078]
[1764855120581,0.4797,3187.1,3186.8,0.00470618]
[1764855120885,0.00381235,3187.2,3186.8,0.00470618]
[1764855122293,0.4797,3187.1,3186.8,0.00470618]
[1764855122984,3.2078,3186.9,3186.8,0.00470618]
[1764855123180,3.2078,3186.9,3185.8,3.2078]
[1764855123380,0.4797,3186.4,3185.8,3.2078]
[1764855124196,3.2078,3186.1,3185.8,0.00729175]
[1764855124785,3.2078,3186.5,3185.8,0.00729175]
[1764855124991,3.2078,3186.9,3186.2,3.2078]
[1764855125378,3.2078,3186.9,3185.8,0.00729175]
[1764855127394,1.6946,3185.9,3185.8,0.00729175]
[1764855127591,4.9024,3185.9,3185.8,0.00729175]
[1764855127886,1.6946,3185.9,3185.8,0.00729175]
[1764855130294,1.6946,3185.2,3185.1,3.2078]
[1764855130682,0.8713,3185.7,3185.1,3.2078]
[1764855130892,3.2078,3185.8,3185.1,3.36476]
[1764855131294,1.6946,3185.2,3185.1,0.00788591]
[1764855131884,1.6946,3185.2,3184.7,3.2078]
[1764855132082,2.5659,3184.8,3184.7,3.2078]
[1764855133195,0.00376131,3184.8,3184.7,5.00929069]
[1764855133996,2.56966131,3184.8,3184.7,3.21001069]
[1764855134196,0.85396131,3184.8,3184.7,3.21001069]
[1764855134395,0.00376131,3184.8,3184.7,3.21001069]
[1764855134791,2.56966131,3184.8,3184.7,0.00221069]
[1764855134995,1.6946,3184.5,3184.4,0.00470618]
[1764855135190,4.9024,3184.5,3183.8,3.2078]
[1764855135497,1.6946,3184.5,3183.8,3.36483]
[1764855135697,0.87506131,3184.8,3184.2,3.2078]
[1764855136100,0.87976749,3184.8,3184.2,0.00543463]
[1764855136592,1.6946,3184.3,3184.2,0.00543463]
[1764855139202,1.6946,3183.9,3183.8,3.2078]
[1764855139396,0.8713,3184.2,3183.8,4.0452]
[1764855139697,3.2078,3184.5,3183.8,4.20223]
[1764855140205,0.8502,3183.9,3183.8,3.36775875]
[1764855140400,3.2078,3184.5,3183.8,4.20515875]
[1764855140703,1.6946,3183.9,3183.3,3.2078]
[1764855141092,1.6946,3183.9,3183.3,3.36485]
[1764855141494,0.8502,3183.9,3183.4,0.15705]
[1764855141701,0.8502,3183.9,3183.8,0.8374]
[1764855142091,3.2078,3184.1,3183.8,0.8374]
[1764855142490,0.8502,3183.9,3183.8,0.8374]
[1764855142693,0.8502,3183.9,3183.4,0.15942516]
[1764855143300,1.6946,3183.5,3183.4,0.00237516]
[1764855143492,4.9024,3183.5,3183.4,0.00237516]
[1764855143998,0.8502,3183.0,3182.9,3.2078]
[1764855144199,1.6946,3183.0,3182.5,3.2078]
[1764855144396,0.8502,3183.0,3182.5,3.2078]
[1764855144891,0.8502,3183.0,3182.5,3.21053958]
[1764855145303,1.6946,3182.6,3182.5,0.00273958]
[1764855145495,4.9024,3182.6,3182.5,0.00273958]
[1764855146803,0.8502,3182.1,3182.0,3.2078]
[1764855147899,0.8537981,3182.1,3182.0,4.04879219]
[1764855148099,0.0035981,3182.1,3182.0,4.04879219]
[1764855149006,0.0035981,3182.1,3182.0,5.01081219]
[1764855150008,1.6981981,3182.1,3182.0,0.16071219]
[1764855150205,0.8537981,3182.1,3182.0,0.99811219]
[1764855150400,0.0035981,3182.1,3182.0,1.80301219]
[1764855150709,0.8537981,3182.1,3182.0,0.99811219]
[1764855150906,0.0035981,3182.1,3182.0,1.80301219]
[1764855151101,3.2078,3182.6,3182.5,1.79939]
[1764855151403,3.21250618,3183.1,3182.6,0.15708]
[1764855151604,3.21250618,3183.1,3183.0,0.8374]
[1764855151902,0.8502,3182.7,3182.6,0.15708]
[1764855152108,4.90644855,3182.7,3182.6,0.15708]
[1764855152706,4.06204855,3182.7,3182.6,0.99448]
[1764855153307,4.06204855,3182.7,3182.6,0.15708]
[1764855153808,3.21184855,3182.7,3182.6,2.46268]
[1764855154009,0.00404855,3182.7,3182.6,2.46268]
[1764855156108,1.48654855,3182.7,3182.6,2.46268]
[1764855156805,0.00404855,3182.7,3182.6,2.46268]
[1764855159108,3.21250618,3183.1,3182.6,2.3056]
[1764855159410,2.941,3183.5,3183.2,0.15705]
[1764855159613,0.8562,3183.5,3183.2,3.08585]
[1764855160108,0.8562,3183.5,3183.4,1.4606]
[1764855160109,0.0022375,3183.5,3183.4,1.4606]
[1764855160503,1.4847375,3183.5,3183.4,1.4606]
[1764855160711,1.4847375,3183.5,3183.4,2.9288]
[1764855160912,0.0022375,3183.5,3183.4,3.08585]
[1764855162717,1.4847375,3183.5,3183.4,3.08585]
[1764855163108,2.8424375,3183.5,3183.0,0.82391393]
[1764855163308,1.3796,3183.1,3183.0,1.41661393]
[1764855163615,2.7373,3183.1,3183.0,0.00471393]
[1764855163804,5.9451,3183.1,3183.0,0.00471393]
[1764855165112,4.0107375,3183.5,3183.0,2.85641393]
[1764855165316,3.2100375,3183.5,3183.4,1.4119]
[1764855165502,3.2100375,3183.5,3183.4,2.8517]
[1764855170414,0.0022375,3183.5,3183.4,3.00875]
[1764855171516,1.3818375,3183.5,3183.4,1.56895]
[1764855172217,0.0022375,3183.5,3183.4,3.00875]
[1764855174719,3.2078,3184.3,3184.2,2.8517]
[1764855175114,3.2078,3185.3,3185.2,2.8517]
[1764855175315,3.2078,3185.3,3185.2,3.00866]
[1764855175818,5.94890056,3185.3,3185.2,0.16064251]
[1764855176221,3.21160056,3185.3,3185.2,3.01234251]
[1764855180628,5.94890056,3185.3,3185.2,0.16064251]
[1764855182225,5.94890056,3185.3,3185.2,0.00368251]
[1764855183519,0.00380056,3185.3,3185.2,3.01234251]
[1764855184227,2.75430056,3185.3,3185.2,0.00368251]
[1764855185522,2.8115,3184.7,3184.6,3.2078]
[1764855186028,6.0193,3185.0,3184.9,1.3695]
[1764855186218,6.772,3185.0,3184.6,3.36479]
[1764855186415,3.9605,3185.0,3184.6,6.1488922]
[1764855187228,2.8115,3184.7,3184.6,3.2112022]
[1764855187525,3.9605,3185.0,3184.6,5.9919022]
[1764855187920,2.8115,3184.7,3184.6,0.0034022]
[1764855192427,0.7527,3184.5,3183.7,3.2078]
[1764855192627,2.8115,3183.8,3183.7,3.2078]
[1764855192924,2.8115,3183.3,3183.2,3.2078]
[1764855193131,2.8115,3183.3,3182.9,0.15707]
[1764855193320,2.8115,3183.3,3182.9,0.16069875]
[1764855193923,0.00471393,3183.4,3183.3,2.93775]
[1764855195529,1.44531393,3183.4,3183.3,1.3695]
[1764855195833,0.00471393,3183.4,3183.3,2.7807]
[1764855196231,0.00471393,3183.4,3183.3,2.93775]
[1764855196624,3.09636816,3183.8,3183.7,2.7807]
[1764855197032,0.7527,3184.5,3183.7,2.7807]
[1764855197033,3.2078,3184.3,3183.7,2.7807]
[1764855197428,3.2078,3184.3,3184.2,2.7807]
[1764855198830,3.2078,3184.3,3184.2,3.75001]
[1764855199033,3.2078,3184.3,3184.2,2.93771]
[1764855199233,2.8115,3184.3,3184.2,0.15701]
[1764855199530,1.4406,3184.3,3184.2,1.52651]
[1764855199736,0.00471393,3184.6,3184.5,2.93769]
[1764855201638,3.2078,3185.1,3184.5,3.74999]
[1764855204140,0.00471393,3185.1,3185.0,2.7807]
[1764855204332,2.81621393,3185.1,3184.6,0.15699]
[1764855205639,0.7527,3185.0,3184.6,0.15699]
[1764855206336,2.8115,3185.0,3184.6,0.15699]
[1764855207142,2.81621393,3185.1,3184.6,0.15699]
[1764855207643,2.8115,3184.7,3184.4,3.2078]
[1764855207857,0.7527,3185.0,3184.6,2.7807]
[1764855209244,2.8115,3185.0,3184.9,1.3695]
[1764855209540,6.02401393,3185.1,3184.5,0.8123]
[1764855210141,3.21251393,3185.1,3185.0,3.593]
[1764855210338,1e-08,3185.3,3185.2,2.93766]
[1764855210937,1e-08,3185.3,3185.2,8.93766]
[1764855211443,3.2078,3186.1,3186.0,2.7807]
[1764855211632,3.2078,3186.1,3186.0,3.593]
[1764855212235,3.2078,3186.1,3186.0,2.7807]
[1764855212436,3.21134825,3186.1,3186.0,3.593]
[1764855212633,0.00354825,3186.1,3186.0,6.95772]
[1764855212830,3.2078,3186.5,3186.4,1.5264]
[1764855213043,3.9605,3187.0,3186.4,2.9376]
[1764855213947,1.4406,3186.5,3186.4,1.5264]
[1764855214150,1.4406,3186.5,3186.4,2.828]
[1764855214446,3.96886757,3187.0,3186.4,2.828]
[1764855214939,3.3352,3186.5,3186.4,0.1569]
[1764855215343,1.2776,3186.5,3186.4,2.7013]
[1764855215843,1.2776,3186.1,3186.0,4.4506]
[1764855216040,2.6108,3186.1,3186.0,3.2078]
[1764855216342,2.6108,3186.1,3186.0,4.4506]
[1764855216744,1.2776,3186.1,3186.0,4.4506]
[1764855217139,4.49376757,3187.0,3186.9,1.2428]
[1764855217339,3.21616757,3187.0,3186.9,2.5444]
[1764855218737,0.00836757,3187.0,3186.9,5.98442687]
[1764855219045,1e-08,3187.0,3186.9,2.70127]
[1764855220140,3.2078,3187.9,3187.0,0.15687]
[1764855220340,3.2078,3188.3,3187.8,2.5444]
[1764855220539,2.6108,3187.9,3187.8,0.15683]
[1764855220741,3.2078,3188.3,3187.8,1.39963]
[1764855220934,2.6108,3187.9,3187.8,0.15917156]
[1764855222141,3.21032993,3188.3,3187.8,2.51327156]
[1764855222448,1.1146,3187.9,3187.8,1.40197156]
[1764855222642,3.21032993,3188.3,3187.8,2.51327156]
[1764855225245,2.2584,3187.9,3187.8,0.15917156]
[1764855226548,2.2584,3187.9,3187.8,1.29927156]
[1764855227143,1.1146,3187.9,3187.8,1.29927156]
[1764855227945,2.2584,3187.9,3187.8,1.29927156]
[1764855228151,1.1146,3187.9,3187.8,2.41057156]
[1764855228853,2.2584,3187.9,3187.8,0.15917156]
[1764855229548,2.2584,3187.9,3187.8,1.29927156]
[1764855229746,2.2584,3187.9,3187.8,0.00234156]
[1764855230043,5.4662,3187.9,3187.8,0.00234156]
[1764855230269,2.2584,3187.9,3187.8,1.14244156]
[1764855231952,0.7244,3188.5,3187.8,1.14244156]
[1764855231953,3.2078,3189.5,3189.1,0.15676]
[1764855232142,0.00723603,3189.2,3189.1,2.40817]
[1764855232449,1.1146,3188.8,3188.7,4.3479]
[1764855232649,3.2078,3189.1,3188.7,2.2514]
[1764855232847,3.2078,3189.1,3189.0,2.2514]
[1764855233053,5.4733517,3189.1,3188.7,3.2078]
[1764855233252,4.3295517,3189.1,3189.0,1.1401]
[1764855233655,4.33678773,3189.1,3189.0,1.1401]
[1764855234444,4.33678773,3189.1,3188.8,0.15678]
[1764855234651,4.33678773,3189.1,3188.7,3.2078]
[1764855234652,5.48058773,3189.1,3188.9,0.15678]
[1764855234851,4.3295517,3189.1,3189.0,2.2514]
[1764855235052,3.2149517,3189.1,3189.0,2.2514]
[1764855235248,3.2078,3189.9,3189.0,3.12537]
[1764855235560,3.2078,3189.9,3189.2,0.15676]
[1764855235748,3.2078,3189.9,3188.7,3.2078]
[1764855235749,2.2584,3189.3,3188.7,3.2078]
[1764855236146,3.8961,3189.5,3188.7,5.4592]
[1764855236353,2.2584,3188.8,3188.7,3.2078]
[1764855236554,2.2584,3188.8,3188.7,4.3479]
[1764855236951,2.2584,3188.8,3188.7,3.2078]
[1764855237348,0.6883,3189.0,3188.7,5.4592]
[1764855237657,1.1146,3188.8,3188.7,5.4592]
[1764855238054,2.2584,3188.8,3188.7,3.2078]
[1764855238364,2.2584,3188.2,3188.1,3.36461]
[1764855238550,2.2584,3188.2,3188.1,3.2078]
[1764855238862,43.0584,3188.2,3188.1,3.2078]
[1764855239361,2.2584,3187.9,3187.8,0.15917156]
[1764855239559,44.0078,3188.2,3187.9,2.2514]
[1764855240058,44.0078,3188.2,3188.1,1.1401]
[1764855240259,2.2584,3188.1,3188.0,0.15682]
[1764855240468,44.0078,3188.2,3187.8,0.00234156]
[1764855240469,2.2584,3187.9,3187.8,0.00234156]
[1764855244362,2.2584,3187.9,3187.0,3.2078]
[1764855244363,2.3193,3187.1,3187.0,3.2078]
[1764855244762,2.3193,3186.7,3186.3,0.1569]
[1764855244965,2.3193,3186.7,3186.4,0.1569]
[1764855245159,1.2083,3186.7,3186.6,1.30539]
[1764855245360,0.0040526,3186.7,3186.6,2.48676585]
[1764855246364,0.0047061,3187.0,3186.9,2.48427]
[1764855246664,1.2083,3187.5,3187.4,0.15685]
[1764855246868,2.3193,3187.5,3187.4,0.15685]
[1764855247168,2.9902,3187.5,3187.4,0.15685]
[1764855247364,2.9927163,3187.5,3187.4,0.15685]
[1764855247869,1.2083,3187.0,3186.9,4.3563]
[1764855248165,0.6734163,3187.5,3186.9,5.69207]
[1764855249357,1.2083,3187.4,3187.3,1.30535]
[1764855250361,2.3193,3187.4,3187.3,0.15685]
[1764855252265,0.6734163,3187.5,3186.9,3.2078]
[1764855252266,2.9902,3187.0,3186.9,3.2078]
[1764855255167,43.7902,3187.0,3186.9,3.2078]
[1764855255470,43.7902,3187.0,3186.0,2.48432]
[1764855255471,0.6709,3186.5,3186.0,2.48432]
[1764855255671,2.3193,3186.4,3186.3,0.1569]
[1764855255963,2.3193,3186.4,3185.8,3.2078]
[1764855256472,2.3240061,3186.4,3185.8,3.3725776]
[1764855256671,2.3240061,3186.4,3185.9,0.15692]
[1764855258677,2.3193,3185.9,3185.8,0.0078476]
[1764855259365,5.5271,3185.9,3185.8,0.0078476]
[1764855265176,2.3193,3185.9,3185.8,0.0078476]
[1764855265370,5.5271,3185.9,3185.8,0.0078476]
[1764855266174,46.3271,3185.9,3185.8,0.0078476]
[1764855266371,5.5271,3185.9,3185.8,1.3132776]
[1764855266574,3.2078,3185.9,3185.8,2.4921776]
[1764855266969,4.4161,3185.9,3185.8,2.4921776]
[1764855267165,5.5271,3185.9,3185.8,0.1647776]
[1764855270081,5.5271,3185.9,3185.8,0.0078476]
[1764855271480,2.3193,3185.4,3185.3,0.15695]
[1764855271679,2.3193,3185.1,3185.0,3.2078]
[1764855271879,2.3193,3185.1,3184.6,0.15699]
[1764855271880,2.3193,3184.7,3184.6,0.15699]
[1764855272077,5.5271,3184.7,3184.1,3.2078]
[1764855272377,45.1273062,3184.7,3184.2,0.15701]
[1764855272574,45.1273062,3184.7,3184.3,0.157]
[1764855272773,44.0163062,3184.7,3184.6,2.3274]
[1764855272977,44.0163062,3184.7,3184.6,2.48439]
[1764855273182,3.2163062,3184.7,3184.6,2.48439]
[1764855273381,4.4246062,3184.7,3184.6,2.48439]
[1764855273685,5.5356062,3184.7,3184.6,0.15699]
[1764855273984,5.5356062,3184.7,3184.1,0.00731634]
[1764855273985,2.1558,3184.2,3184.1,0.00731634]
[1764855274681,42.9558,3184.2,3184.1,0.00731634]
[1764855275282,2.1558,3184.2,3184.1,0.00731634]
[1764855276875,2.1558,3184.2,3184.1,1.10281634]
[1764855277978,2.1558,3184.2,3184.1,0.00731634]
[1764855278690,2.1558,3184.2,3184.1,1.10281634]
[1764855279486,44.0078,3184.3,3184.2,2.1757]
[1764855279878,2.1558,3184.2,3184.1,2.34002634]
[1764855280077,2.1558,3184.2,3184.1,0.16432634]
[1764855280981,5.3636,3184.2,3184.1,0.16432634]
[1764855282292,5.3636,3184.2,3184.1,1.25982634]
[1764855282491,5.3636,3184.2,3184.1,0.00731634]
[1764855282688,2.2795,3183.1,3183.0,1.1431]
[1764855282992,3.2078,3183.4,3183.3,2.2131]
[1764855283192,2.2795,3183.1,3183.0,1.1431]
[1764855283595,2.2795,3183.1,3183.0,0.00248661]
[1764855285387,5.4873,3183.4,3183.3,0.15705]
[1764855287389,5.4873,3183.4,3183.3,2.37015]
[1764855287591,2.2795,3184.3,3184.2,0.15701]
[1764855287789,2.2795,3184.3,3184.2,1.30011]
[1764855288492,2.2795,3184.3,3183.5,11.3993]
[1764855288682,1.1266,3183.7,3183.6,2.37014]
[1764855288884,6.1522,3184.0,3183.9,1.1431]
[1764855289289,4.3344,3184.0,3183.9,2.37012]
[1764855289991,6.1522,3184.0,3183.9,0.15702]
[1764855290195,6.1522,3184.0,3183.1,3.2078]
[1764855290196,2.2795,3183.5,3183.4,1.30015]
[1764855290392,1.1266,3183.2,3183.1,5.4209]
[1764855290693,2.2795,3183.1,3183.0,0.00248661]
[1764855291392,2.2795,3183.1,3183.0,1.14558661]
[1764855291592,2.2795,3183.1,3183.0,0.00248661]
[1764855295497,3.2078,3183.2,3182.0,1.1431]
[1764855295498,1.1529,3182.1,3182.0,1.1431]
[1764855295794,2.2795,3182.1,3182.0,1.1431]
[1764855296391,2.28282183,3182.1,3182.0,1.14569882]
[1764855297392,2.28282183,3182.1,3182.0,0.00259882]
[1764855299196,2.28282183,3182.1,3182.0,1.14569882]
[1764855299702,2.28282183,3182.1,3182.0,0.00259882]
[1764855300401,2.28282183,3182.1,3182.0,1.14569882]
[1764855301001,2.2795,3181.8,3181.7,0.00471393]
[1764855301194,0.6649,3182.0,3180.7,3.2078]
[1764855301195,2.2795,3180.8,3180.7,3.2078]
[1764855301394,2.2795,3180.8,3180.5,0.15719]
[1764855301697,2.2795,3180.3,3179.9,10.177]
[1764855301996,1.1266,3180.5,3180.4,2.2131]
[1764855302198,40.8,3180.7,3180.6,2.2131]
[1764855302392,1.15761393,3180.8,3180.6,0.15719]
[1764855302593,2.2795,3180.7,3180.6,1.30029]
[1764855302796,2.2795,3180.7,3180.6,0.15719]
[1764855303198,2.2795,3180.2,3180.1,3.21251393]
[1764855303398,2.2795,3180.2,3180.1,1.14781393]
[1764855303598,1.1266,3180.2,3180.1,1.14781393]
[1764855303796,1.1619,3180.5,3180.4,2.2082]
[1764855304197,5.5021,3180.7,3180.6,1.129]
[1764855304395,5.5021,3180.7,3180.1,0.00471393]
[1764855304606,1.1619,3180.6,3180.5,2.36539]
[1764855304796,0.00471393,3180.8,3180.7,2.2082]
[1764855305311,1.16661393,3180.8,3180.7,2.2082]
[1764855305908,0.00471393,3180.8,3180.7,4.44641068]
[1764855306115,0.00471393,3180.8,3180.7,2.36538]
[1764855306314,1.16661393,3180.8,3180.7,2.36538]
[1764855306514,5.50681393,3180.8,3180.7,0.15718]
[1764855306717,5.50681393,3180.8,3180.7,1.28618]
[1764855306913,0.00471393,3180.8,3180.7,2.36538]
[1764855307217,0.00471393,3180.8,3180.7,4.44641068]
[1764855307714,0.00471393,3180.8,3180.7,2.36538]
[1764855307918,5.50681393,3180.8,3180.7,0.15718]
[1764855308213,5.50681393,3180.8,3180.2,10.13]
[1764855308214,2.2943,3180.3,3180.2,10.13]
[1764855308408,1.1619,3180.3,3180.2,11.2092]
[1764855308610,1.1619,3180.5,3180.4,1.129]
[1764855308809,1.1619,3180.4,3180.3,2.3654]
[1764855309020,3.21251393,3180.8,3180.3,2.3654]
[1764855309218,3.21251393,3180.8,3180.2,9.001]
[1764855309421,5.50681393,3180.8,3180.7,1.129]
[1764855309815,5.50681393,3180.8,3180.7,1.28618]
[1764855310222,5.50681393,3180.8,3180.7,0.15718]
[1764855310721,2.29901393,3180.8,3180.7,0.15718]
[1764855310923,2.29901393,3180.8,3180.1,0.00471393]
[1764855311217,1.1619,3180.3,3180.2,2.3654]
[1764855311417,1.1619,3180.4,3180.3,2.3654]
[1764855312316,3.21251393,3180.8,3180.5,0.15719]
[1764855312616,4.37441393,3180.8,3180.7,2.36538]
[1764855313319,5.50681393,3180.8,3180.7,0.15718]
[1764855314021,5.50681393,3180.8,3180.1,1.13371393]
[1764855314022,2.2943,3180.2,3180.1,1.13371393]
[1764855314215,2.2943,3180.2,3180.1,0.16192393]
[1764855315125,2.2943,3180.2,3180.1,0.00471393]
[1764855319715,2.931,3179.5,3179.4,3.2078]
[1764855320318,2.931,3179.5,3179.2,0.15725]
[1764855320319,2.2943,3179.3,3179.2,0.15725]
[1764855320722,2.29837289,3179.3,3179.2,0.15961716]
[1764855320921,2.931,3179.0,3178.9,0.00314789]
[1764855321621,2.931,3179.0,3178.1,10.184]
[1764855321622,2.2943,3178.3,3178.2,0.1573]
[1764855321928,2.2943,3178.3,3178.2,0.16050758]
[1764855322123,3.2078,3178.7,3178.2,2.21140758]
[1764855322319,5.5021,3178.7,3178.6,1.28628]
[1764855322518,5.5021,3178.7,3178.6,0.15728]
[1764855323323,0.64141393,3179.0,3178.9,0.15727]
[1764855323527,1.80331393,3179.0,3178.9,1.28627]
[1764855323722,2.93571393,3179.0,3178.9,1.28627]
[1764855323931,0.00471393,3179.0,3178.9,2.36547]
[1764855324317,2.93571393,3179.0,3178.9,0.15727]
[1764855325229,2.2943,3178.3,3178.2,0.16050758]
[1764855325617,1.1619,3178.3,3178.2,2.36870758]
[1764855325822,2.2943,3178.3,3178.2,0.16050758]
[1764855326928,2.2943,3178.4,3178.3,0.1573]
[1764855327426,2.2943,3178.3,3178.2,0.00320758]
[1764855327626,2.2943,3177.8,3177.1,3.2078]
[1764855327831,2.2943,3177.1,3177.0,0.15736]
[1764855328329,40.8,3177.2,3176.6,3.2078]
[1764855328330,2.2943,3176.7,3176.6,3.36518]
[1764855328724,2.29808201,3176.7,3176.6,0.1614146]
[1764855329624,2.29808201,3176.7,3176.6,1e-08]
[1764855330222,0.00378201,3176.7,3176.6,1e-08]
[1764855330431,2.2943,3175.8,3175.7,3.2078]
[1764855330821,43.0943,3175.8,3175.7,3.2078]
[1764855331017,3.2078,3176.2,3175.9,2.2082]
[1764855331225,1.1619,3176.2,3176.1,1.28641]
[1764855331528,40.80378201,3176.7,3176.4,0.15739]
[1764855331928,1.1619,3176.5,3176.4,0.15739]
[1764855332132,2.931,3176.5,3176.4,0.15739]
[1764855332926,2.2943,3176.2,3176.1,3.2078]
[1764855333127,1.1619,3176.2,3176.1,1.129]
[1764855333433,40.80378201,3176.7,3176.4,1.129]
[1764855333632,1.0599,3176.3,3176.2,0.1574]
[1764855333834,5.2694,3176.3,3176.2,0.1574]
[1764855334225,1.0599,3176.3,3176.2,1.1408]
[1764855334531,1.0599,3176.3,3176.2,0.1574]
[1764855334726,2.0616,3176.3,3176.2,0.1574]
[1764855335334,1.0599,3176.3,3176.2,1.1408]
[1764855335527,0.5603,3176.5,3176.2,2.1352]
[1764855335733,2.6219,3176.5,3176.4,0.15739]
[1764855336033,1.0599,3176.5,3176.4,1.14079]
[1764855336227,40.80378201,3176.7,3176.5,0.15739]
[1764855336431,2.0616,3176.6,3176.5,0.15739]
[1764855337024,40.80378201,3176.7,3176.6,0.9834]
[1764855337429,1.06368201,3176.7,3176.6,0.9834]
[1764855337837,1.0599,3176.6,3176.5,0.15739]
[1764855338029,2.0616,3176.6,3176.5,0.15739]
[1764855338636,1.0599,3176.6,3176.5,1.14079]
[1764855338837,2.0616,3176.6,3176.5,0.15739]
[1764855339330,2.06538201,3176.7,3176.6,1.14078]
[1764855339938,2.06538201,3176.7,3176.6,0.15738]
[1764855340233,1.0017,3176.1,3176.0,1.14081]
[1764855340427,0.5603,3176.5,3176.0,1.14081]